bitfinex-derivatives/quotes_SOLF0:USTF0_20250928
["timestamp","ask_amount","ask_price","bid_price","bid_amount"]
[1759065472790,4.5106,199.44,199.38,126.7117]
[1759065473500,70.1604,199.45,199.35,7.84]
[1759065473692,70.164,199.44,199.35,7.84]
[1759065473895,4.5117,199.39,199.35,7.84]
[1759065474299,70.1673,199.43,199.35,7.84]
[1759065476099,4.5118,199.39,199.35,7.84]
[1759065476696,4.5119,199.38,199.32,130.04]
[1759065477397,4.5119,199.38,199.32,134.5531]
[1759065477600,4.5119,199.38,199.33,7.84]
[1759065477898,4.5119,199.38,199.32,126.7131]
[1759065478099,4.5119,199.38,199.33,7.84]
[1759065478306,4.5119,199.38,199.32,126.7131]
[1759065478598,4.5119,199.38,199.32,4.5131]
[1759065478800,4.5119,199.38,199.33,7.84]
[1759065479000,4.5119,199.38,199.32,4.5131]
[1759065479199,4.5119,199.38,199.3,5.64686773]
[1759065479200,4.5122,199.37,199.33,7.84]
[1759065479402,70.183,199.39,199.3,7.84]
[1759065479601,70.1859,199.38,199.3,7.84]
[1759065479800,70.1859,199.38,199.26,130.04]
[1759065479998,4.5131,199.33,199.26,12.3545]
[1759065480299,70.1999,199.34,199.23,7.84]
[1759065480490,70.198,199.35,199.23,7.84]
[1759065481196,4.513,199.33,199.24,7.84]
[1759065481605,70.183,199.39,199.25,92.22]
[1759065481899,70.183,199.39,199.26,114.9]
[1759065482094,4.5126,199.35,199.28,7.84]
[1759065483198,4.5129,199.34,199.28,7.84]
[1759065483397,70.183,199.39,199.24,7.84]
[1759065483398,70.1961,199.35,199.24,7.84]
[1759065483596,70.1996,199.34,199.24,7.84]
[1759065484197,4.5139,199.3,199.24,7.84]
[1759065484500,70.205,199.33,199.2,7.84]
[1759065484800,70.2137,199.3,199.2,7.84]
[1759065484995,70.2178,199.29,199.2,7.84]
[1759065486100,122.34,199.29,199.17,7.84]
[1759065486400,122.42,199.29,199.17,7.84]
[1759065486595,4.5148,199.26,199.17,12.3565]
[1759065486999,87.56290168,199.39,199.22,7.84]
[1759065487199,70.1915,199.37,199.22,7.84]
[1759065487700,75.94,199.36,199.22,7.84]
[1759065487900,192.8185,199.35,199.22,7.84]
[1759065488094,70.1985,199.35,199.22,7.84]
[1759065488294,70.1915,199.37,199.2,104.4081]
[1759065488495,8.9,199.36,199.21,115.2]
[1759065488696,70.1915,199.37,199.22,7.84]
[1759065488893,84.4515,199.37,199.23,7.84]
[1759065489299,4.513,199.33,199.22,130.48]
[1759065489504,4.513,199.33,199.23,7.84]
[1759065489704,14.0,199.37,199.24,7.84]
[1759065490101,4.5128,199.35,199.27,7.84]
[1759065490310,70.1766,199.41,199.27,7.84]
[1759065491000,70.1766,199.41,199.28,8.17]
[1759065492106,91.8766,199.41,199.28,8.17]
[1759065492302,4.5119,199.38,199.29,4.5137]
[1759065492508,4.5119,199.38,199.3,8.17]
[1759065492709,4.5119,199.38,199.29,4.5137]
[1759065493405,4.5119,199.38,199.3,8.17]
[1759065493605,4.5119,199.38,199.29,4.5137]
[1759065493800,4.5119,199.38,199.3,8.17]
[1759065493999,4.5119,199.38,199.29,4.5137]
[1759065494201,4.5119,199.38,199.3,8.17]
[1759065494399,4.5115,199.4,199.27,170.4836]
[1759065494602,4.5115,199.4,199.28,8.17]
[1759065494802,4.5115,199.4,199.29,122.68]
[1759065495005,4.5115,199.4,199.3,130.85]
[1759065495210,4.5115,199.4,199.31,8.17]
[1759065495611,4.5115,199.4,199.33,8.17]
[1759065496207,4.511,199.42,199.33,8.17]
[1759065496408,0.44015151,199.44,199.33,8.17]
[1759065496609,0.44015151,199.44,199.35,8.17]
[1759065496807,4.95075151,199.44,199.37,8.17]
[1759065497007,0.44015151,199.44,199.37,8.17]
[1759065501024,4.95085151,199.44,199.37,8.17]
[1759065502825,4.5107,199.44,199.37,4.512]
[1759065503030,4.5107,199.44,199.38,8.17]
[1759065503830,4.5101,199.46,199.38,8.17]
[1759065504027,70.1288,199.55,199.39,7.86]
[1759065504226,70.1295,199.54,199.41,7.86]
[1759065505330,4.5093,199.5,199.44,7.86]
[1759065505731,4.5088,199.52,199.44,12.3704]
[1759065506829,4.5088,199.52,199.45,4.5101]
[1759065507129,4.5088,199.52,199.46,7.86]
[1759065508237,135.54728926,199.59,199.46,7.86]
[1759065508429,65.43238926,199.59,199.46,7.86]
[1759065508633,70.1028,199.62,199.46,7.86]
[1759065508835,70.1028,199.62,199.47,22.68]
[1759065509137,0.87227883,199.62,199.51,7.86]
[1759065509337,70.0972,199.64,199.51,7.86]
[1759065510530,4.5068,199.61,199.54,7.86]
[1759065511537,4.5063,199.63,199.55,7.86]
[1759065512638,70.0837,199.67,199.56,7.86]
[1759065513242,4.5064,199.63,199.56,7.86]
[1759065516635,4.5058,199.65,199.56,7.86]
[1759065518845,4.5058,199.65,199.56,12.3676]
[1759065519034,70.0544,199.76,199.57,122.66]
[1759065519235,70.0544,199.76,199.58,7.86]
[1759065519439,4.5051,199.68,199.59,7.86]
[1759065520037,4.5046,199.71,199.59,7.86]
[1759065520233,4.5046,199.71,199.59,192.8107]
[1759065520536,70.0515,199.77,199.6,7.86]
[1759065520743,4.504,199.73,199.65,7.86]
[1759065522644,4.504,199.73,199.65,12.3656]
[1759065523838,70.0383,199.8,199.66,12.3653]
[1759065524146,70.0383,199.8,199.64,7.86]
[1759065524442,4.5029,199.78,199.7,7.86]
[1759065524638,70.0274,199.83,199.7,7.86]
[1759065524839,70.0308,199.82,199.7,7.86]
[1759065525142,4.503,199.78,199.7,7.86]
[1759065525538,70.0341,199.81,199.7,7.86]
[1759065525746,70.0308,199.82,199.7,7.86]
[1759065525747,70.0397,199.8,199.7,7.86]
[1759065526639,70.0484,199.77,199.64,7.86]
[1759065526940,70.052,199.76,199.64,7.86]
[1759065528139,4.5046,199.71,199.64,7.86]
[1759065529235,70.0563,199.75,199.61,364.7]
[1759065529236,70.067,199.72,199.61,364.7]
[1759065529547,70.0733,199.7,199.61,7.86]
[1759065529741,70.0809,199.68,199.57,8.45593402]
[1759065529941,70.0837,199.67,199.57,8.45593402]
[1759065530145,70.0871,199.66,199.57,8.45593402]
[1759065531145,70.0948,199.64,199.52,7.86]
[1759065532446,4.5071,199.6,199.52,7.86]
[1759065533644,4.5071,199.6,199.52,12.3685]
[1759065533845,4.5071,199.6,199.52,7.86]
[1759065535342,70.0871,199.66,199.52,7.86]
[1759065535343,4.5065,199.62,199.52,7.86]
[1759065536042,4.5065,199.62,199.53,4.5083]
[1759065536248,4.5065,199.62,199.54,7.95]
[1759065537246,4.5061,199.64,199.53,7.95]
[1759065537441,4.5061,199.64,199.55,7.95]
[1759065538749,4.5061,199.64,199.55,12.4578]
[1759065538949,4.5056,199.66,199.56,7.95]
[1759065539752,4.5059,199.65,199.57,4.5074]
[1759065540150,40.76,199.71,199.57,4.5074]
[1759065540351,70.0654,199.73,199.6,7.95]
[1759065540352,4.505,199.69,199.6,7.95]
[1759065540551,70.0695,199.71,199.6,7.95]
[1759065540752,70.0727,199.7,199.6,7.95]
[1759065540953,4.5057,199.66,199.6,7.95]
[1759065542551,70.0654,199.73,199.6,7.95]
[1759065542850,70.0654,199.73,199.61,7.95]
[1759065543051,70.0654,199.72,199.61,7.95]
[1759065543653,70.0697,199.71,199.61,7.95]
[1759065544151,70.0654,199.73,199.61,7.95]
[1759065544356,4.5047,199.7,199.61,12.4565]
[1759065544556,4.5047,199.7,199.62,7.95]
[1759065545759,4.505,199.69,199.62,7.95]
[1759065546056,70.0654,199.73,199.62,7.95]
[1759065547056,70.0693,199.71,199.62,7.95]
[1759065547754,70.0654,199.73,199.61,7.95]
[1759065548057,70.0673,199.72,199.61,7.95]
[1759065548655,4.5054,199.67,199.61,7.95]
[1759065548962,4.5054,199.67,199.5,7.95]
[1759065548963,70.0919,199.65,199.5,7.95]
[1759065549254,70.0919,199.65,199.54,7.95]
[1759065549459,70.097,199.63,199.54,7.95]
[1759065549755,70.0919,199.65,199.54,7.95]
[1759065549955,112.76,199.66,199.54,7.95]
[1759065550652,70.0798,199.68,199.54,7.95]
[1759065550853,158.0531,199.7,199.54,7.95]
[1759065551058,70.0731,199.7,199.54,7.95]
[1759065551362,70.0731,199.7,199.56,7.61]
[1759065551756,70.0797,199.68,199.56,7.61]
[1759065553555,4.5063,199.63,199.56,7.61]
[1759065553754,70.0868,199.66,199.56,7.61]
[1759065554153,70.0901,199.65,199.56,7.61]
[1759065554359,70.0971,199.63,199.53,7.61]
[1759065554559,70.1043,199.61,199.49,372.21]
[1759065554760,4.5082,199.55,199.49,372.21]
[1759065555056,70.1015,199.62,199.49,372.21]
[1759065555261,86.38,199.61,199.49,372.21]
[1759065555463,4.5077,199.57,199.49,376.7192]
[1759065555663,70.0946,199.64,199.5,7.61]
[1759065556165,4.5067,199.61,199.49,487.9]
[1759065556463,4.5067,199.61,199.5,7.61]
[1759065556665,4.5072,199.59,199.52,4.5086]
[1759065557867,70.0963,199.64,199.53,7.61]
[1759065558264,4.507,199.6,199.53,7.61]
[1759065559666,4.5073,199.59,199.53,7.61]
[1759065561372,193.3268,199.66,199.53,12.1183]
[1759065561869,4.5068,199.61,199.53,12.1183]
[1759065562566,4.507,199.6,199.53,12.1183]
[1759065564864,4.5072,199.59,199.53,7.61]
[1759065565372,4.5075,199.58,199.51,127.6488]
[1759065565567,70.1041,199.61,199.52,7.51]
[1759065565768,70.1111,199.59,199.49,372.11]
[1759065566564,70.1111,199.59,199.49,7.51]
[1759065566765,70.0809,199.68,199.48,7.51]
[1759065567071,86.62,199.66,199.5,7.51]
[1759065567271,0.48801925,199.67,199.5,7.51]
[1759065567568,94.58,199.66,199.5,7.51]
[1759065567761,94.58,199.66,199.48,7.51]
[1759065568068,70.0977,199.63,199.53,7.51]
[1759065569067,70.1063,199.61,199.53,7.51]
[1759065569467,4.5082,199.55,199.5,7.51]
[1759065569662,70.1148,199.58,199.5,7.51]
[1759065570570,4.5086,199.53,199.5,7.51]
[1759065571668,70.1225,199.56,199.46,7.51]
[1759065572073,4.5091,199.51,199.46,7.51]
[1759065572269,4.5091,199.51,199.45,7.51]
[1759065573881,70.1314,199.54,199.45,7.51]
[1759065574374,4.509,199.51,199.45,7.51]
[1759065575568,4.5085,199.53,199.45,7.51]
[1759065575773,70.1079,199.6,199.45,7.51]
[1759065575971,70.1079,199.6,199.46,7.51]
[1759065576177,162.4879,199.6,199.46,7.51]
[1759065576471,70.1154,199.58,199.46,7.51]
[1759065577564,4.5084,199.54,199.46,12.02]
[1759065580477,4.5086,199.53,199.46,12.02]
[1759065581580,4.5086,199.53,199.47,7.51]
[1759065584385,4.5086,199.53,199.47,12.0197]
[1759065585778,4.5081,199.55,199.49,7.51]
[1759065588483,4.5081,199.55,199.49,12.0193]
[1759065588681,70.079,199.69,199.5,121.76]
[1759065588884,70.079,199.69,199.51,7.51]
[1759065589184,149.659,199.69,199.51,7.51]
[1759065589381,70.079,199.69,199.53,7.51]
[1759065589586,4.5063,199.63,199.56,12.0177]
[1759065589786,70.0875,199.66,199.56,7.51]
[1759065590884,4.5067,199.62,199.56,7.51]
[1759065591289,0.48801925,199.67,199.56,7.51]
[1759065592084,0.48801925,199.67,199.55,7.51]
[1759065592486,0.48801925,199.67,199.56,7.51]
[1759065592683,4.5057,199.66,199.55,123.16]
[1759065592883,70.069,199.72,199.56,70.1209]
[1759065593087,70.069,199.72,199.58,7.51]
[1759065593287,149.39737924,199.75,199.59,92.58]
[1759065593288,143.82624479,199.75,199.59,92.58]
[1759065593582,143.82624479,199.75,199.61,7.51]
[1759065593583,70.058,199.75,199.61,7.51]
[1759065593783,4.5046,199.71,199.65,7.51]
[1759065596683,4.5039,199.74,199.65,7.51]
[1759065597479,4.5041,199.73,199.65,7.51]
[1759065600285,70.0485,199.77,199.65,7.51]
[1759065600286,70.0559,199.75,199.65,7.51]
[1759065601289,70.0634,199.73,199.65,7.51]
[1759065601889,4.5051,199.69,199.6,4.5069]
[1759065602090,70.0698,199.71,199.61,7.51]
[1759065602285,4.5055,199.67,199.61,7.51]
[1759065604190,4.5049,199.69,199.61,7.51]
[1759065604594,97.0,199.74,199.61,7.51]
[1759065604797,70.0559,199.75,199.61,7.51]
[1759065604988,193.1359,199.75,199.61,7.51]
[1759065605593,4.5046,199.71,199.62,4.5065]
[1759065605788,4.5046,199.71,199.61,7.51]
[1759065605789,70.0604,199.74,199.61,7.51]
[1759065605995,70.0498,199.77,199.61,7.51]
[1759065606306,70.0578,199.75,199.62,7.51]
[1759065606496,70.0614,199.74,199.62,7.51]
[1759065606995,70.0669,199.72,199.62,7.51]
[1759065607988,4.5053,199.68,199.62,7.51]
[1759065608392,193.2037,199.73,199.62,7.51]
[1759065608785,193.1837,199.73,199.62,7.51]
[1759065609602,70.0533,199.76,199.6,7.51]
[1759065609799,70.0562,199.75,199.6,7.51]
[1759065610097,4.5046,199.71,199.62,4.5065]
[1759065610302,193.2962,199.75,199.63,7.51]
[1759065610600,70.0749,199.7,199.58,7.89]
[1759065610800,4.5056,199.66,199.58,7.89]
[1759065611602,4.5059,199.65,199.58,12.3972]
[1759065613704,4.5061,199.64,199.58,12.3972]
[1759065613904,4.5061,199.64,199.58,7.89]
[1759065614600,4.5056,199.66,199.58,7.89]
[1759065614803,70.049,199.77,199.58,7.89]
[1759065615000,70.049,199.77,199.59,38.2]
[1759065615199,75.62,199.76,199.6,7.89]
[1759065615699,193.4362,199.75,199.6,7.89]
[1759065616407,70.049,199.77,199.59,30.06]
[1759065616408,70.049,199.77,199.65,7.89]
[1759065617102,4.5043,199.72,199.65,12.3956]
[1759065617904,4.5039,199.74,199.67,7.89]
[1759065620208,4.5039,199.74,199.67,12.3952]
[1759065622917,364.74,199.81,199.72,7.89]
[1759065623713,4.503,199.78,199.72,7.89]
[1759065624117,364.74,199.81,199.72,7.89]
[1759065624514,193.3276,199.84,199.72,7.89]
[1759065624915,4.5026,199.8,199.72,7.89]
[1759065625514,4.5026,199.8,199.65,70.0903]
[1759065625515,70.0597,199.74,199.57,7.25020177]
[1759065625821,70.0597,199.74,199.58,7.92]
[1759065625822,70.0633,199.73,199.58,7.92]
[1759065626817,4.5051,199.69,199.58,7.92]
[1759065627018,4.5051,199.69,199.59,131.46]
[1759065627320,4.5051,199.69,199.6,7.92]
[1759065628713,4.5051,199.69,199.63,7.92]
[1759065629120,4.5051,199.69,199.63,12.4261]
[1759065629526,4.5051,199.69,199.63,7.92]
[1759065631524,4.5051,199.69,199.6,12.4269]
[1759065631821,70.0711,199.71,199.6,7.92]
[1759065632035,70.0737,199.7,199.58,12.4274]
[1759065632325,70.0737,199.7,199.58,7.92]
[1759065633223,4.5052,199.68,199.58,7.92]
[1759065633429,70.0595,199.74,199.59,7.92]
[1759065633626,70.0595,199.74,199.6,7.92]
[1759065633828,4.5047,199.7,199.63,4.5061]
[1759065634028,4.5047,199.7,199.64,7.92]
[1759065634429,70.0561,199.75,199.64,7.92]
[1759065635630,4.5043,199.72,199.64,12.4259]
[1759065635926,70.049,199.77,199.64,7.92]
[1759065636431,4.5038,199.74,199.67,7.92]
[1759065637730,4.5041,199.73,199.67,7.92]
[1759065638026,75.61463445,199.79,199.67,7.92]
[1759065638227,4.5034,199.76,199.69,7.92]
[1759065638427,5.57113445,199.8,199.69,7.92]
[1759065638928,124.51139423,199.82,199.69,7.92]
[1759065639320,70.0356,199.81,199.69,7.92]
[1759065639526,70.0419,199.8,199.69,7.92]
[1759065640231,4.5037,199.75,199.69,7.92]
[1759065642436,4.5037,199.75,199.69,12.4248]
[1759065643628,4.5031,199.77,199.7,12.4246]
[1759065643825,4.5031,199.77,199.7,7.92]
[1759065644026,70.0356,199.81,199.7,7.92]
[1759065644223,4.5035,199.76,199.7,7.92]
[1759065644431,70.0356,199.81,199.7,7.92]
[1759065644827,4.5035,199.76,199.7,7.92]
[1759065645032,70.0428,199.79,199.7,7.92]
[1759065646331,4.5032,199.77,199.7,7.92]
[1759065646833,4.5035,199.76,199.7,7.92]
[1759065647239,70.0412,199.8,199.7,7.92]
[1759065648142,4.5037,199.75,199.68,4.505]
[1759065648440,4.5037,199.75,199.69,7.92]
[1759065649742,4.5039,199.74,199.69,7.92]
[1759065650340,4.5039,199.74,199.68,4.505]
[1759065651439,4.5034,199.76,199.66,7.92]
[1759065652545,4.5034,199.76,199.7,4.5045]
[1759065652948,4.503,199.78,199.67,70.0823]
[1759065653250,15.20441164,199.84,199.74,7.92]
[1759065654146,4.5027,199.79,199.73,4.5039]
[1759065654649,4.5027,199.79,199.74,7.71]
[1759065655243,70.0319,199.82,199.72,7.71]
[1759065655447,70.0354,199.81,199.72,7.71]
[1759065656142,70.046,199.78,199.64,7.71]
[1759065656345,70.046,199.78,199.66,7.71]
[1759065657547,4.5041,199.73,199.67,4.5053]
[1759065658646,70.0422,199.79,199.66,7.71]
[1759065658949,70.0604,199.74,199.61,7.71]
[1759065659251,4.505,199.69,199.63,4.5062]
[1759065659653,4.505,199.69,199.63,12.2162]
[1759065659854,4.5046,199.71,199.64,7.71]
[1759065660050,70.0604,199.74,199.64,7.71]
[1759065660251,4.5052,199.68,199.64,7.71]
[1759065660552,4.5052,199.68,199.62,7.71]
[1759065661649,4.5055,199.67,199.62,7.71]
[1759065661844,70.0715,199.71,199.59,10.15386773]
[1759065662155,4.5064,199.63,199.6,7.71]
[1759065662542,70.0783,199.69,199.6,7.71]
[1759065663048,70.0848,199.67,199.57,7.25020177]
[1759065664845,4.506,199.64,199.57,7.25020177]
[1759065665046,70.0629,199.73,199.58,7.71]
[1759065665345,70.0664,199.72,199.61,7.71]
[1759065665552,70.0707,199.71,199.61,7.71]
[1759065665754,70.0776,199.69,199.57,14.96020177]
[1759065666250,193.6776,199.69,199.57,14.96020177]
[1759065666554,70.0854,199.67,199.57,14.96020177]
[1759065667446,4.506,199.64,199.57,14.96020177]
[1759065667647,70.0707,199.71,199.58,7.71]
[1759065668352,4.5056,199.66,199.59,4.507]
[1759065669662,4.5047,199.7,199.6,7.71]
[1759065669861,70.0774,199.69,199.6,7.71]
[1759065670474,70.0493,199.77,199.6,7.71]
[1759065670665,74.0,199.76,199.6,27.33]
[1759065670866,70.0493,199.77,199.61,8.09]
[1759065670867,4.5043,199.72,199.61,8.09]
[1759065671165,4.5043,199.72,199.62,8.09]
[1759065671371,88.3083,199.78,199.62,8.09]
[1759065671567,4.5039,199.74,199.67,8.09]
[1759065671968,70.0392,199.8,199.67,8.09]
[1759065672474,4.5037,199.75,199.68,4.505]
[1759065673171,70.0455,199.78,199.67,8.09]
[1759065673974,70.0455,199.78,199.67,12.5952]
[1759065675577,70.0491,199.77,199.67,8.09]
[1759065676272,4.5043,199.72,199.67,8.09]
[1759065676679,70.0534,199.76,199.67,8.09]
[1759065676874,70.0566,199.75,199.63,12.5962]
[1759065677178,70.0603,199.74,199.63,12.5962]
[1759065677475,4.505,199.69,199.63,8.09]
[1759065678476,4.5053,199.68,199.63,8.09]
[1759065678779,4.5053,199.68,199.62,12.5963]
[1759065679275,4.5053,199.68,199.59,76.16]
[1759065679276,4.5055,199.67,199.61,8.09]
[1759065680081,4.5055,199.67,199.61,12.5966]
[1759065682578,4.5057,199.66,199.6,8.09]
[1759065682775,70.0748,199.7,199.6,8.09]
[1759065685275,70.0807,199.68,199.6,8.09]
[1759065685473,70.0807,199.68,199.57,14.74923]
[1759065685474,70.0874,199.66,199.57,14.74923]
[1759065685673,4.5073,199.59,199.57,6.53923]
[1759065686781,70.0881,199.66,199.57,6.53923]
[1759065687075,123.78,199.67,199.57,14.74923]
[1759065687269,4.5066,199.62,199.57,14.74923]
[1759065687668,123.78,199.67,199.57,14.74923]
[1759065687669,70.0877,199.66,199.57,14.74923]
[1759065687879,70.0912,199.65,199.57,14.74923]
[1759065688275,70.0877,199.66,199.57,14.74923]
[1759065689082,193.8477,199.66,199.57,14.74923]
[1759065689277,193.8277,199.66,199.57,14.74923]
[1759065689486,70.0932,199.65,199.57,14.74923]
[1759065689783,70.1054,199.61,199.57,6.53923]
[1759065690184,193.8854,199.61,199.57,6.53923]
[1759065690481,4.5073,199.59,199.57,6.059e-05]
[1759065691473,70.1212,199.57,199.49,8.21]
[1759065691678,70.1212,199.57,199.46,8.21]
[1759065691878,193.9435,199.56,199.46,8.21]
[1759065692486,4.5091,199.51,199.44,8.21]
[1759065692686,123.82,199.56,199.44,8.21]
[1759065692883,123.84,199.56,199.44,8.21]
[1759065693786,4.5086,199.53,199.45,4.5102]
[1759065694490,4.5086,199.53,199.46,8.21]
[1759065695090,4.5081,199.55,199.46,8.21]
[1759065696581,4.5076,199.57,199.46,8.21]
[1759065697492,70.1122,199.59,199.49,8.21]
[1759065697682,70.1225,199.56,199.49,8.21]
[1759065697886,70.1267,199.55,199.41,8.21]
[1759065698081,70.1267,199.55,199.4,70.1786]
[1759065698082,70.1267,199.55,199.42,8.21]
[1759065698789,70.1195,199.57,199.42,8.21]
[1759065699090,80.12,199.58,199.43,8.21]
[1759065699695,4.5087,199.53,199.46,4.5099]
[1759065699888,4.5087,199.53,199.47,8.21]
[1759065702298,4.5081,199.55,199.47,12.7197]
[1759065703296,4.5081,199.55,199.48,4.5095]
[1759065703498,4.5081,199.55,199.49,8.21]
[1759065703699,4.5084,199.54,199.48,12.7195]
[1759065705399,4.5087,199.53,199.48,8.21]
[1759065706793,4.5087,199.53,199.47,12.7197]
[1759065707198,4.5087,199.53,199.47,8.21]
[1759065710706,4.5075,199.58,199.49,8.21]
[1759065711100,4.5075,199.58,199.5,123.76]
[1759065711297,0.55153653,199.63,199.54,8.21]
[1759065712693,0.55153653,199.63,199.52,87.18]
[1759065712694,4.5066,199.62,199.57,8.21]
[1759065712895,4.5066,199.62,199.56,12.7177]
[1759065713095,0.55153653,199.63,199.56,8.21]
[1759065713304,4.5068,199.61,199.55,4.5079]
[1759065713802,4.5068,199.61,199.56,7.67]
[1759065714302,70.65063653,199.63,199.52,7.67]
[1759065714504,70.1095,199.6,199.52,7.67]
[1759065714696,70.1156,199.58,199.44,7.67]
[1759065715100,70.1156,199.58,199.45,7.67]
[1759065715296,4.5087,199.53,199.46,4.51]
[1759065715499,4.5087,199.53,199.45,7.67]
[1759065715500,70.1016,199.62,199.45,7.67]
[1759065715803,70.105,199.61,199.47,7.67]
[1759065716408,4.5082,199.55,199.49,4.5093]
[1759065716603,4.5082,199.55,199.47,7.67]
[1759065717207,4.5082,199.55,199.48,4.5095]
[1759065717813,4.5082,199.55,199.49,7.67]
[1759065718813,4.5077,199.57,199.49,7.67]
[1759065719603,4.5077,199.57,199.5,4.5091]
[1759065721111,4.508,199.56,199.5,4.5091]
[1759065722817,4.5074,199.58,199.52,4.5086]
[1759065723006,0.55153653,199.63,199.51,7.67]
[1759065723418,0.55153653,199.63,199.52,7.67]
[1759065723917,4.5068,199.61,199.55,4.5079]
[1759065724117,0.55153653,199.63,199.55,7.67]
[1759065724616,4.5073,199.59,199.55,7.67]
[1759065725314,0.55153653,199.63,199.55,7.67]
[1759065727117,4.507,199.6,199.53,4.5084]
[1759065727315,4.507,199.6,199.54,7.67]
[1759065728614,0.55153653,199.63,199.53,7.67]
[1759065730719,4.5075,199.58,199.52,8.06]
[1759065732020,4.5075,199.58,199.52,12.5686]
[1759065733417,4.5077,199.57,199.52,8.06]
[1759065733619,70.1057,199.61,199.51,8.06]
[1759065734118,70.1123,199.59,199.51,8.06]
[1759065734421,70.1099,199.6,199.51,8.06]
[1759065734622,4.5081,199.55,199.46,8.06]
[1759065734823,4.5081,199.55,199.47,4.5098]
[1759065735035,4.5081,199.55,199.48,8.06]
[1759065735621,4.5084,199.54,199.48,12.5695]
[1759065736027,4.5084,199.54,199.48,4.5095]
[1759065736225,4.5084,199.54,199.47,8.06]
[1759065737623,0.55153653,199.63,199.49,8.06]
[1759065738122,0.55153653,199.63,199.5,8.06]
[1759065738423,4.5072,199.59,199.54,8.06]
[1759065738627,0.55153653,199.63,199.51,70.1385]
[1759065738925,0.55153653,199.63,199.53,8.06]
[1759065739618,4.5065,199.62,199.57,8.06]
[1759065739820,4.5065,199.62,199.56,4.5076]
[1759065740025,4.5065,199.62,199.56,12.5676]
[1759065743327,0.55153653,199.63,199.54,8.1]
[1759065743631,0.55153653,199.63,199.55,8.1]
[1759065743830,364.58,199.7,199.61,8.1]
[1759065744734,364.58,199.7,199.6,4.5067]
[1759065744735,4.5055,199.66,199.6,12.6067]
[1759065745329,4.5055,199.66,199.6,8.1]
[1759065746230,40.07807659,199.73,199.6,8.1]
[1759065746231,75.62673445,199.75,199.6,8.1]
[1759065746427,75.62673445,199.75,199.61,8.1]
[1759065746628,4.5047,199.7,199.63,4.506]
[1759065746833,70.0504,199.77,199.64,8.1]
[1759065747033,193.6704,199.77,199.64,8.1]
[1759065747733,4.504,199.73,199.66,8.1]
[1759065749030,4.5045,199.71,199.59,70.1107]
[1759065749239,4.5045,199.71,199.61,8.1]
[1759065750035,4.5047,199.7,199.61,8.1]
[1759065750240,70.062,199.73,199.61,8.1]
[1759065751340,4.505,199.69,199.61,12.6066]
[1759065754445,4.5044,199.71,199.64,8.1]